[Event "19th Rochefort Chess Festival - Masters"]
[Site "Rochefort, France"]
[Date "2020.02.23"]
[Round "2.5"]
[White "Maiorov, Nikita"]
[Black "Jeet, Jain"]
[Result "1-0"]
[TimeControl "1h30/40 - 30' + [30'']"]
[WhiteElo "2506"]
[BlackElo "2223"]

1. d4 {[%clk 01:22:30]} {[%emt 00:08:29]} d5 {[%clk 01:30:40]} {[%emt
00:00:20]} 2. c4 {[%clk 01:22:57]} {[%emt 00:00:04]} e6 {[%clk 01:31:01]}
{[%emt 00:00:09]} 3. Nf3 {[%clk 01:23:22]} {[%emt 00:00:04]} Nf6 {[%clk
01:31:18]} {[%emt 00:00:13]} 4. e3 {[%clk 01:23:47]} {[%emt 00:00:05]} b6
{[%clk 01:30:55]} {[%emt 00:00:54]} 5. Bd3 {[%clk 01:21:16]} {[%emt 00:03:01]}
Bb7 {[%clk 01:31:01]} {[%emt 00:00:23]} 6. O-O {[%clk 01:21:40]} {[%emt
00:00:06]} Bd6 {[%clk 01:31:06]} {[%emt 00:00:25]} 7. b3 {[%clk 01:21:36]}
{[%emt 00:00:35]} O-O {[%clk 01:30:49]} {[%emt 00:00:47]} 8. Nc3 {[%clk
01:21:42]} {[%emt 00:00:24]} c5 {[%clk 01:25:41]} {[%emt 00:05:39]} 9. Bb2
{[%clk 01:18:34]} {[%emt 00:03:37]} a6 {[%clk 01:21:28]} {[%emt 00:04:43]} 10.
cxd5 {[%clk 01:17:58]} {[%emt 00:01:06]} exd5 {[%clk 01:18:25]} {[%emt
00:03:34]} 11. Rc1 {[%clk 01:13:44]} {[%emt 00:04:43]} Nbd7 {[%clk 01:15:39]}
{[%emt 00:03:16]} 12. Qe2 {[%clk 01:13:09]} {[%emt 00:01:05]} Qe7 {[%clk
01:09:12]} {[%emt 00:06:58]} 13. Rfd1 {[%clk 01:13:11]} {[%emt 00:00:28]} Ne4
{[%clk 01:06:21]} {[%emt 00:03:21]} 14. Qf1 {[%clk 01:09:30]} {[%emt 00:04:11]}
b5 {[%clk 00:54:25]} {[%emt 00:12:26]} 15. dxc5 {[%clk 01:08:42]} {[%emt
00:01:18]} Ndxc5 {[%clk 00:54:40]} {[%emt 00:00:15]} 16. Bb1 {[%clk 01:05:43]}
{[%emt 00:03:29]} Nxc3 {[%clk 00:53:36]} {[%emt 00:01:34]} 17. Bxc3 {[%clk
01:06:08]} {[%emt 00:00:04]} Ne4 {[%clk 00:53:51]} {[%emt 00:00:14]} 18. Bd4
{[%clk 01:00:20]} {[%emt 00:06:19]} Ba3 {[%clk 00:51:41]} {[%emt 00:02:41]} 19.
Rc2 {[%clk 01:00:42]} {[%emt 00:00:07]} Rac8 {[%clk 00:51:55]} {[%emt
00:00:16]} 20. Qd3 {[%clk 00:57:39]} {[%emt 00:03:33]} Rxc2 {[%clk 00:47:36]}
{[%emt 00:04:50]} 21. Bxc2 {[%clk 00:58:04]} {[%emt 00:00:05]} Rc8 {[%clk
00:47:28]} {[%emt 00:00:38]} 22. Ne1 {[%clk 00:55:44]} {[%emt 00:02:50]} g6
{[%clk 00:44:58]} {[%emt 00:03:00]} 23. Bb1 {[%clk 00:49:29]} {[%emt 00:06:45]}
Bd6 {[%clk 00:34:27]} {[%emt 00:11:01]} 24. Nf3 {[%clk 00:48:01]} {[%emt
00:01:57]} b4 {[%clk 00:34:01]} {[%emt 00:00:56]} 25. Bb2 {[%clk 00:47:48]}
{[%emt 00:00:43]} Nc3 {[%clk 00:32:44]} {[%emt 00:01:47]} 26. Re1 {[%clk
00:45:51]} {[%emt 00:02:27]} Qe4 {[%clk 00:27:16]} {[%emt 00:05:58]} 27. Qf1
{[%clk 00:42:52]} {[%emt 00:03:29]} Nxb1 {[%clk 00:19:23]} {[%emt 00:08:24]} 28.
Rxb1 {[%clk 00:43:17]} {[%emt 00:00:05]} Qe8 {[%clk 00:11:10]} {[%emt
00:08:44]} 29. Qd1 {[%clk 00:40:19]} {[%emt 00:03:27]} Qe4 {[%clk 00:10:54]}
{[%emt 00:00:47]} 30. Ra1 {[%clk 00:39:24]} {[%emt 00:01:25]} Rc2 {[%clk
00:09:54]} {[%emt 00:01:30]} 31. Bd4 {[%clk 00:39:44]} {[%emt 00:00:09]} Rc8
{[%clk 00:09:17]} {[%emt 00:01:07]} 32. Ne1 {[%clk 00:37:51]} {[%emt 00:02:22]}
Bc6 {[%clk 00:08:01]} {[%emt 00:01:47]} 33. Qd2 {[%clk 00:37:05]} {[%emt
00:01:16]} Bb5 {[%clk 00:07:10]} {[%emt 00:01:21]} 34. Rd1 {[%clk 00:37:28]}
{[%emt 00:00:07]} Bf8 {[%clk 00:06:30]} {[%emt 00:01:11]} 35. Ba1 {[%clk
00:35:55]} {[%emt 00:02:02]} Bg7 {[%clk 00:06:09]} {[%emt 00:00:51]} 36. Bxg7
{[%clk 00:32:21]} {[%emt 00:04:05]} Kxg7 {[%clk 00:06:37]} {[%emt 00:00:01]} 37.
Qb2+ {[%clk 00:32:28]} {[%emt 00:00:23]} f6 {[%clk 00:03:55]} {[%emt 00:03:12]}
38. Rd4 {[%clk 00:32:32]} {[%emt 00:00:26]} Qe7 {[%clk 00:03:03]} {[%emt
00:01:22]} 39. Rxd5 {[%clk 00:29:50]} {[%emt 00:03:12]} Qc7 {[%clk 00:03:32]}
{[%emt 00:00:01]} 40. Qd2 {[%clk 00:26:00]} {[%emt 00:04:19]} Qc3 {[%clk
00:02:47]} {[%emt 00:01:16]} 41. f3 {[%clk 00:23:01]} {[%emt 00:03:29]} Qxd2
{[%clk 00:02:20]} {[%emt 00:00:58]} 42. Rxd2 {[%clk 00:23:22]} {[%emt
00:00:07]} Rc1 {[%clk 00:02:31]} {[%emt 00:00:19]} 43. Kf2 {[%clk 00:23:49]}
{[%emt 00:00:03]} Ra1 {[%clk 00:02:53]} {[%emt 00:00:08]} 44. e4 {[%clk
00:24:08]} {[%emt 00:00:11]} Kf7 {[%clk 00:02:39]} {[%emt 00:00:44]} 45. g3
{[%clk 00:24:23]} {[%emt 00:00:15]} a5 {[%clk 00:02:27]} {[%emt 00:00:42]} 46.
Rb2 {[%clk 00:23:16]} {[%emt 00:01:36]} f5 {[%clk 00:02:19]} {[%emt 00:00:38]}
47. e5 {[%clk 00:16:38]} {[%emt 00:07:09]} Ke6 {[%clk 00:02:27]} {[%emt
00:00:22]} 48. f4 {[%clk 00:16:54]} {[%emt 00:00:13]} Bc6 {[%clk 00:02:06]}
{[%emt 00:00:51]} 49. Nf3 {[%clk 00:14:05]} {[%emt 00:03:18]} Bd5 {[%clk
00:01:43]} {[%emt 00:00:54]} 50. Rd2 {[%clk 00:13:30]} {[%emt 00:01:04]} h6
{[%clk 00:01:24]} {[%emt 00:00:49]} 51. Nd4+ {[%clk 00:12:19]} {[%emt
00:01:41]} Ke7 {[%clk 00:01:53]} {[%emt 00:00:01]} 52. Nxf5+ {[%clk 00:12:15]}
{[%emt 00:00:34]} gxf5 {[%clk 00:02:22]} {[%emt 00:00:02]} 53. Rxd5 {[%clk
00:12:38]} {[%emt 00:00:06]} Rxa2+ {[%clk 00:02:50]} {[%emt 00:00:02]} 54. Ke3
{[%clk 00:13:03]} {[%emt 00:00:05]} Rxh2 {[%clk 00:02:41]} {[%emt 00:00:39]} 55.
Rxa5 {[%clk 00:13:21]} {[%emt 00:00:13]} Rb2 {[%clk 00:02:41]} {[%emt
00:00:29]} 56. Ra7+ {[%clk 00:13:30]} {[%emt 00:00:20]} Ke8 {[%clk 00:02:00]}
{[%emt 00:01:12]} 57. Kd4 {[%clk 00:13:01]} {[%emt 00:00:59]} Rxb3 {[%clk
00:02:26]} {[%emt 00:00:05]} 58. e6 {[%clk 00:12:55]} {[%emt 00:00:35]} Rxg3
{[%clk 00:02:42]} {[%emt 00:00:15]} 59. Ke5 {[%clk 00:13:20]} {[%emt 00:00:05]}
Ra3 {[%clk 00:03:07]} {[%emt 00:00:05]} 60. Rb7 {[%clk 00:13:38]} {[%emt
00:00:12]} Re3+ {[%clk 00:01:21]} {[%emt 00:02:16]} 61. Kf6 {[%clk 00:13:59]}
{[%emt 00:00:08]} Kd8 {[%clk 00:01:15]} {[%emt 00:00:37]} 62. Rxb4 {[%clk
00:13:17]} {[%emt 00:01:11]} Kc7 {[%clk 00:01:30]} {[%emt 00:00:15]} 63. Rd4
{[%clk 00:12:51]} {[%emt 00:00:56]} 1-0

[Event "19th Rochefort Chess Festival - Masters"]
[Site "Rochefort, France"]
[Date "2020.02.23"]
[Round "2.4"]
[White "Dalaud, Dorian"]
[Black "Burmakin, Vladimir"]
[Result "0-1"]
[TimeControl "1h30/40 - 30' + [30'']"]
[WhiteElo "2236"]
[BlackElo "2514"]

1. c4 {[%clk 01:26:42]} {[%emt 00:04:18]} c6 {[%clk 01:30:38]} {[%emt
00:00:22]} 2. Nf3 {[%clk 01:26:18]} {[%emt 00:00:53]} Nf6 {[%clk 01:30:53]}
{[%emt 00:00:16]} 3. Nc3 {[%clk 01:26:15]} {[%emt 00:00:33]} d5 {[%clk
01:31:18]} {[%emt 00:00:05]} 4. e3 {[%clk 01:26:37]} {[%emt 00:00:07]} g6
{[%clk 01:30:13]} {[%emt 00:01:35]} 5. d4 {[%clk 01:26:41]} {[%emt 00:00:26]}
Bg7 {[%clk 01:30:41]} {[%emt 00:00:02]} 6. Bd3 {[%clk 01:26:40]} {[%emt
00:00:32]} O-O {[%clk 01:30:56]} {[%emt 00:00:15]} 7. O-O {[%clk 01:27:04]}
{[%emt 00:00:06]} Be6 {[%clk 01:29:09]} {[%emt 00:02:18]} 8. cxd5 {[%clk
01:17:53]} {[%emt 00:09:41]} Nxd5 {[%clk 01:26:10]} {[%emt 00:03:28]} 9. e4
{[%clk 01:16:10]} {[%emt 00:02:14]} Nb6 {[%clk 01:26:02]} {[%emt 00:00:38]} 10.
Be3 {[%clk 01:09:35]} {[%emt 00:07:05]} Bc4 {[%clk 01:23:01]} {[%emt 00:03:31]}
11. Qe2 {[%clk 01:07:03]} {[%emt 00:03:02]} Bxd3 {[%clk 01:22:09]} {[%emt
00:01:21]} 12. Qxd3 {[%clk 01:07:26]} {[%emt 00:00:07]} Na6 {[%clk 01:15:35]}
{[%emt 00:07:04]} 13. Rad1 {[%clk 01:03:35]} {[%emt 00:04:21]} Qd6 {[%clk
01:15:11]} {[%emt 00:00:54]} 14. h4 {[%clk 01:01:06]} {[%emt 00:03:00]} Rad8
{[%clk 01:05:58]} {[%emt 00:09:43]} 15. Qe2 {[%clk 00:55:43]} {[%emt 00:05:53]}
Qe6 {[%clk 01:05:12]} {[%emt 00:01:15]} 16. h5 {[%clk 00:51:55]} {[%emt
00:04:19]} Qg4 {[%clk 01:03:40]} {[%emt 00:02:02]} 17. h6 {[%clk 00:51:05]}
{[%emt 00:01:20]} Bh8 {[%clk 01:04:08]} 18. Qc2 {[%clk 00:44:38]} {[%emt
00:06:57]} Nc7 {[%clk 00:59:53]} {[%emt 00:04:45]} 19. Ne5 {[%clk 00:36:27]}
{[%emt 00:08:41]} Qh5 {[%clk 00:59:38]} {[%emt 00:00:45]} 20. Qb3 {[%clk
00:36:06]} {[%emt 00:00:51]} Ne6 {[%clk 00:48:06]} {[%emt 00:12:02]} 21. Nxf7
{[%clk 00:26:25]} {[%emt 00:10:11]} Kxf7 {[%clk 00:48:32]} {[%emt 00:00:03]} 22.
f4 {[%clk 00:26:48]} {[%emt 00:00:07]} Qxh6 {[%clk 00:48:55]} {[%emt 00:00:07]}
23. Rf3 {[%clk 00:24:05]} {[%emt 00:03:14]} Qh5 {[%clk 00:49:03]} {[%emt
00:00:22]} 24. f5 {[%clk 00:16:55]} {[%emt 00:07:40]} Ke8 {[%clk 00:49:14]}
{[%emt 00:00:18]} 25. Qxe6 {[%clk 00:14:57]} {[%emt 00:02:29]} Rd6 {[%clk
00:48:40]} {[%emt 00:01:04]} 26. Qb3 {[%clk 00:15:08]} {[%emt 00:00:19]} gxf5
{[%clk 00:48:52]} {[%emt 00:00:17]} 27. Rxf5 {[%clk 00:12:28]} {[%emt
00:03:11]} Rxf5 {[%clk 00:48:19]} {[%emt 00:01:03]} 28. exf5 {[%clk 00:12:57]}
{[%emt 00:00:01]} Qg4 {[%clk 00:38:27]} {[%emt 00:10:22]} 29. d5 {[%clk
00:06:54]} {[%emt 00:06:33]} Bxc3 {[%clk 00:34:43]} {[%emt 00:04:14]} 30. Bxb6
{[%clk 00:06:46]} {[%emt 00:00:38]} axb6 {[%clk 00:21:06]} {[%emt 00:14:08]} 31.
bxc3 {[%clk 00:07:14]} {[%emt 00:00:01]} b5 {[%clk 00:21:05]} {[%emt 00:00:30]}
32. f6 {[%clk 00:05:06]} {[%emt 00:02:38]} Qe2 {[%clk 00:17:29]} {[%emt
00:04:07]} 33. Rf1 {[%clk 00:02:13]} {[%emt 00:03:23]} Qe3+ {[%clk 00:13:31]}
{[%emt 00:04:28]} 34. Rf2 {[%clk 00:02:29]} {[%emt 00:00:15]} Rxf6 {[%clk
00:13:48]} {[%emt 00:00:12]} 0-1

[Event "19th Rochefort Chess Festival - Masters"]
[Site "Rochefort, France"]
[Date "2020.02.23"]
[Round "2.1"]
[White "Gareyev, Timur"]
[Black "Parnali, S Dharia"]
[Result "1-0"]
[TimeControl "1h30/40 - 30' + [30'']"]
[WhiteElo "2607"]
[BlackElo "2275"]

1. Nf3 {[%clk 01:30:50]} {[%emt 00:00:08]} Nf6 {[%clk 01:30:48]} {[%emt
00:00:12]} 2. g3 {[%clk 01:30:55]} {[%emt 00:00:25]} c5 {[%clk 01:31:04]}
{[%emt 00:00:14]} 3. Bg2 {[%clk 01:30:52]} {[%emt 00:00:32]} Nc6 {[%clk
01:31:21]} {[%emt 00:00:13]} 4. O-O {[%clk 01:31:10]} {[%emt 00:00:13]} e5
{[%clk 01:31:03]} {[%emt 00:00:48]} 5. c4 {[%clk 01:30:52]} {[%emt 00:00:47]}
d5 {[%clk 01:31:13]} {[%emt 00:00:19]} 6. cxd5 {[%clk 01:30:24]} {[%emt
00:00:59]} Nxd5 {[%clk 01:31:26]} {[%emt 00:00:17]} 7. Nc3 {[%clk 01:30:47]}
{[%emt 00:00:07]} Nc7 {[%clk 01:31:16]} {[%emt 00:00:39]} 8. d3 {[%clk
01:31:12]} {[%emt 00:00:06]} Be7 {[%clk 01:31:17]} {[%emt 00:00:29]} 9. Nd2
{[%clk 01:31:40]} {[%emt 00:00:02]} Bd7 {[%clk 01:31:24]} {[%emt 00:00:23]} 10.
Nc4 {[%clk 01:32:07]} {[%emt 00:00:02]} f6 {[%clk 01:31:40]} {[%emt 00:00:14]}
11. f4 {[%clk 01:31:34]} {[%emt 00:01:04]} b5 {[%clk 01:31:22]} {[%emt
00:00:48]} 12. Ne3 {[%clk 01:31:30]} {[%emt 00:00:33]} exf4 {[%clk 01:30:53]}
{[%emt 00:01:00]} 13. Nf5 {[%clk 01:30:06]} {[%emt 00:01:53]} b4 {[%clk
01:28:40]} {[%emt 00:02:43]} 14. Nxe7 {[%clk 01:19:48]} {[%emt 00:10:49]} Qxe7
{[%clk 01:22:29]} {[%emt 00:06:41]} 15. Ne4 {[%clk 01:17:21]} {[%emt 00:02:57]}
fxg3 {[%clk 01:21:12]} {[%emt 00:01:47]} 16. Bf4 {[%clk 01:17:48]} {[%emt
00:00:03]} gxh2+ {[%clk 01:20:59]} {[%emt 00:00:43]} 17. Kh1 {[%clk 01:18:17]}
Ne5 {[%clk 01:12:45]} {[%emt 00:08:45]} 18. Rc1 {[%clk 01:18:46]} {[%emt
00:00:01]} O-O {[%clk 01:06:08]} {[%emt 00:07:07]} 19. d4 {[%clk 01:19:13]}
{[%emt 00:00:03]} Ng4 {[%clk 01:02:44]} {[%emt 00:03:54]} 20. Bxc7 {[%clk
01:19:04]} {[%emt 00:00:40]} Bc6 {[%clk 01:02:13]} {[%emt 00:01:01]} 21. Qb3+
{[%clk 01:18:47]} {[%emt 00:00:47]} Kh8 {[%clk 00:54:35]} {[%emt 00:08:09]} 22.
Bd6 {[%clk 01:19:05]} {[%emt 00:00:13]} Qb7 {[%clk 00:54:54]} {[%emt 00:00:11]}
23. Bxf8 {[%clk 01:18:30]} {[%emt 00:01:05]} Rxf8 {[%clk 00:50:23]} {[%emt
00:05:00]} 24. Qf3 {[%clk 01:18:40]} {[%emt 00:00:20]} h5 {[%clk 00:47:10]}
{[%emt 00:03:44]} 25. Rxc5 {[%clk 01:18:59]} {[%emt 00:00:11]} g6 {[%clk
00:46:37]} {[%emt 00:01:02]} 26. Qf4 {[%clk 01:16:29]} {[%emt 00:03:00]} Qd7
{[%clk 00:37:59]} {[%emt 00:09:09]} 27. d5 {[%clk 01:12:05]} {[%emt 00:04:54]}
Bxd5 {[%clk 00:35:28]} {[%emt 00:03:00]} 28. Rd1 {[%clk 01:11:52]} {[%emt
00:00:43]} g5 {[%clk 00:34:32]} {[%emt 00:01:26]} 29. Qg3 {[%clk 01:12:20]}
{[%emt 00:00:02]} Rc8 {[%clk 00:33:35]} {[%emt 00:01:27]} 30. Rdxd5 {[%clk
01:09:22]} {[%emt 00:03:29]} Rxc5 {[%clk 00:31:47]} {[%emt 00:02:18]} 31. Nxc5
{[%clk 01:09:44]} {[%emt 00:00:08]} 1-0

[Event "19th Rochefort Chess Festival - Masters"]
[Site "Rochefort, France"]
[Date "2020.02.23"]
[Round "2.3"]
[White "Vorobiov, Evgeny E."]
[Black "Doyen, Remi"]
[Result "1/2-1/2"]
[TimeControl "1h30/40 - 30' + [30'']"]
[WhiteElo "2520"]
[BlackElo "2242"]

1. d4 {[%clk 01:30:55]} {[%emt 00:00:03]} d5 {[%clk 01:30:51]} {[%emt
00:00:09]} 2. c4 {[%clk 01:31:11]} {[%emt 00:00:15]} e6 {[%clk 01:31:12]}
{[%emt 00:00:09]} 3. Nf3 {[%clk 01:31:15]} {[%emt 00:00:26]} a6 {[%clk
01:30:53]} {[%emt 00:00:50]} 4. e3 {[%clk 01:21:13]} {[%emt 00:10:31]} Nf6
{[%clk 01:30:20]} {[%emt 00:01:03]} 5. Nc3 {[%clk 01:21:15]} {[%emt 00:00:27]}
dxc4 {[%clk 01:26:16]} {[%emt 00:04:34]} 6. Bxc4 {[%clk 01:21:29]} {[%emt
00:00:17]} b5 {[%clk 01:26:39]} {[%emt 00:00:07]} 7. Bb3 {[%clk 01:21:52]}
{[%emt 00:00:06]} Bb7 {[%clk 01:26:51]} {[%emt 00:00:15]} 8. O-O {[%clk
01:22:13]} {[%emt 00:00:12]} Nbd7 {[%clk 01:26:05]} {[%emt 00:01:17]} 9. e4
{[%clk 01:22:16]} {[%emt 00:00:27]} b4 {[%clk 01:19:57]} {[%emt 00:06:38]} 10.
e5 {[%clk 01:22:28]} {[%emt 00:00:18]} bxc3 {[%clk 01:19:53]} {[%emt 00:00:34]}
11. exf6 {[%clk 01:22:54]} {[%emt 00:00:04]} Qxf6 {[%clk 00:56:08]} {[%emt
00:24:16]} 12. bxc3 {[%clk 01:22:11]} {[%emt 00:01:12]} Bd6 {[%clk 00:52:40]}
{[%emt 00:03:58]} 13. Ba4 {[%clk 01:18:37]} {[%emt 00:04:05]} Bxf3 {[%clk
00:50:40]} {[%emt 00:02:30]} 14. Qxf3 {[%clk 01:18:43]} {[%emt 00:00:24]} Qxf3
{[%clk 00:51:04]} {[%emt 00:00:06]} 15. gxf3 {[%clk 01:19:09]} {[%emt
00:00:05]} Ke7 {[%clk 00:42:56]} {[%emt 00:08:37]} 16. Rb1 {[%clk 01:17:42]}
{[%emt 00:01:57]} Rab8 {[%clk 00:40:05]} {[%emt 00:03:21]} 17. Be3 {[%clk
01:17:27]} {[%emt 00:00:44]} Rxb1 {[%clk 00:33:54]} {[%emt 00:06:40]} 18. Rxb1
{[%clk 01:17:35]} {[%emt 00:00:23]} Rb8 {[%clk 00:34:19]} {[%emt 00:00:05]} 19.
Rxb8 {[%clk 01:14:38]} {[%emt 00:03:28]} Nxb8 {[%clk 00:34:44]} {[%emt
00:00:05]} 20. c4 {[%clk 01:14:31]} {[%emt 00:00:37]} Bb4 {[%clk 00:32:48]}
{[%emt 00:02:26]} 21. Kf1 {[%clk 01:13:58]} {[%emt 00:01:03]} Nd7 {[%clk
00:31:42]} {[%emt 00:01:36]} 22. Ke2 {[%clk 01:11:08]} {[%emt 00:03:20]} c5
{[%clk 00:26:23]} {[%emt 00:05:49]} 23. Bc6 {[%clk 01:07:50]} {[%emt 00:03:47]}
Kd6 {[%clk 00:24:31]} {[%emt 00:02:22]} 24. Bb7 {[%clk 01:06:18]} {[%emt
00:02:02]} a5 {[%clk 00:24:03]} {[%emt 00:00:58]} 25. Ba6 {[%clk 01:05:25]}
{[%emt 00:01:23]} Bc3 {[%clk 00:21:33]} {[%emt 00:03:00]} 26. dxc5+ {[%clk
01:04:18]} {[%emt 00:01:36]} Nxc5 {[%clk 00:21:49]} {[%emt 00:00:14]} 27. Bb5
{[%clk 01:04:37]} {[%emt 00:00:11]} e5 {[%clk 00:19:08]} {[%emt 00:03:11]} 28.
Be8 {[%clk 00:55:43]} {[%emt 00:09:24]} f6 {[%clk 00:17:59]} {[%emt 00:01:39]}
29. f4 {[%clk 00:51:13]} {[%emt 00:04:59]} exf4 {[%clk 00:15:53]} {[%emt
00:02:36]} 30. Bxf4+ {[%clk 00:51:26]} {[%emt 00:00:18]} Be5 {[%clk 00:16:18]}
{[%emt 00:00:05]} 31. Bd2 {[%clk 00:51:26]} {[%emt 00:00:29]} Nb7 {[%clk
00:15:03]} {[%emt 00:01:45]} 32. f4 {[%clk 00:46:54]} {[%emt 00:05:03]} Bd4
{[%clk 00:14:08]} {[%emt 00:01:25]} 33. Bf7 {[%clk 00:46:30]} {[%emt 00:00:53]}
Kc5 {[%clk 00:12:14]} {[%emt 00:02:25]} 34. Bd5 {[%clk 00:44:34]} {[%emt
00:02:26]} Nd6 {[%clk 00:12:18]} {[%emt 00:00:25]} 35. Kd3 {[%clk 00:42:20]}
{[%emt 00:02:45]} Bg1 {[%clk 00:12:41]} {[%emt 00:00:08]} 36. Bxa5 {[%clk
00:35:17]} {[%emt 00:07:33]} Bxh2 {[%clk 00:12:58]} {[%emt 00:00:12]} 37. a3
{[%clk 00:35:19]} {[%emt 00:00:30]} Nc8 {[%clk 00:07:48]} {[%emt 00:05:40]} 38.
Bb4+ {[%clk 00:34:33]} {[%emt 00:01:16]} Kb6 {[%clk 00:08:13]} {[%emt
00:00:06]} 39. c5+ {[%clk 00:34:38]} {[%emt 00:00:25]} Kc7 {[%clk 00:07:55]}
{[%emt 00:00:47]} 40. Ba5+ {[%clk 00:27:14]} {[%emt 00:07:54]} Kd7 {[%clk
00:02:41]} {[%emt 00:05:44]} 41. Bd2 {[%clk 00:24:35]} {[%emt 00:03:08]} h6
{[%clk 00:23:49]} {[%emt 00:09:22]} 42. f5 {[%clk 00:52:42]} {[%emt 00:02:23]}
Ne7 {[%clk 00:23:12]} {[%emt 00:01:07]} 43. Be4 {[%clk 00:52:48]} {[%emt
00:00:24]} g6 {[%clk 00:21:09]} {[%emt 00:02:33]} 44. fxg6 {[%clk 00:50:32]}
{[%emt 00:02:46]} f5 {[%clk 00:21:26]} {[%emt 00:00:13]} 45. Bh1 {[%clk
00:47:27]} {[%emt 00:03:35]} Nxg6 {[%clk 00:21:05]} {[%emt 00:00:51]} 46. Bxh6
{[%clk 00:45:57]} {[%emt 00:02:00]} Kc7 {[%clk 00:13:07]} {[%emt 00:08:29]} 47.
a4 {[%clk 00:44:27]} {[%emt 00:02:00]} f4 {[%clk 00:11:25]} {[%emt 00:02:12]}
48. Ke4 {[%clk 00:40:17]} {[%emt 00:04:39]} Bg1 {[%clk 00:09:52]} {[%emt
00:02:04]} 49. Kf5 {[%clk 00:39:33]} {[%emt 00:01:14]} Ne7+ {[%clk 00:09:32]}
{[%emt 00:00:51]} 50. Ke6 {[%clk 00:39:11]} {[%emt 00:00:51]} Bxc5 {[%clk
00:08:59]} {[%emt 00:01:03]} 51. Bxf4+ {[%clk 00:36:50]} {[%emt 00:02:52]} Kb6
{[%clk 00:09:14]} {[%emt 00:00:15]} 52. Bf3 {[%clk 00:36:56]} {[%emt 00:00:23]}
Nc8 {[%clk 00:03:59]} {[%emt 00:05:46]} 53. Kd7 {[%clk 00:36:03]} {[%emt
00:01:22]} Ka5 {[%clk 00:03:34]} {[%emt 00:00:55]} 54. Kc6 {[%clk 00:36:15]}
{[%emt 00:00:18]} Bf2 {[%clk 00:02:44]} {[%emt 00:01:20]} 55. Bd1 {[%clk
00:36:01]} {[%emt 00:00:44]} Nb6 {[%clk 00:02:04]} {[%emt 00:01:10]} 56. Bd2+
{[%clk 00:34:53]} {[%emt 00:01:37]} Ka6 {[%clk 00:02:28]} {[%emt 00:00:07]} 57.
a5 {[%clk 00:35:01]} {[%emt 00:00:22]} Ka7 {[%clk 00:02:29]} {[%emt 00:00:30]}
58. Be2 {[%clk 00:34:18]} {[%emt 00:01:13]} Bg1 {[%clk 00:02:20]} {[%emt
00:00:38]} 59. Bg5 {[%clk 00:32:27]} {[%emt 00:02:21]} Bf2 {[%clk 00:01:56]}
{[%emt 00:00:54]} 60. Bb5 {[%clk 00:30:26]} {[%emt 00:02:31]} Bg1 {[%clk
00:01:59]} {[%emt 00:00:27]} 61. Bd8 {[%clk 00:30:20]} {[%emt 00:00:36]} Na8
{[%clk 00:02:22]} {[%emt 00:00:07]} 62. Bf6 {[%clk 00:25:42]} {[%emt 00:05:08]}
Bf2 {[%clk 00:02:21]} {[%emt 00:00:31]} 63. Be5 {[%clk 00:25:48]} {[%emt
00:00:25]} Bg1 {[%clk 00:02:20]} {[%emt 00:00:30]} 64. Kd7 {[%clk 00:25:26]}
{[%emt 00:00:52]} Bf2 {[%clk 00:02:16]} {[%emt 00:00:33]} 65. Kc8 {[%clk
00:24:46]} {[%emt 00:01:10]} Nb6+ {[%clk 00:02:30]} {[%emt 00:00:16]} 66. Kd8
{[%clk 00:22:21]} {[%emt 00:02:55]} Bg1 {[%clk 00:01:39]} {[%emt 00:01:21]} 67.
Bg3 {[%clk 00:21:48]} {[%emt 00:01:02]} Be3 {[%clk 00:01:58]} {[%emt 00:00:11]}
68. Kc7 {[%clk 00:21:35]} {[%emt 00:00:44]} Na8 {[%clk 00:01:20]} {[%emt
00:01:08]} 69. Kc8 {[%clk 00:21:15]} {[%emt 00:00:50]} Nb6+ {[%clk 00:01:40]}
{[%emt 00:00:10]} 70. axb6+ {[%clk 00:21:39]} {[%emt 00:00:07]} Kxb6 {[%clk
00:02:05]} {[%emt 00:00:04]} 1/2-1/2